[Event "*** Titled Tuesday Blitz"]
[Site "Chess.com"]
[Date "2021.03.09"]
[Round "8"]
[White "FormerProdigy"]
[Black "Legendinunknown"]
[Result "1-0"]
[WhiteElo "2840"]
[BlackElo "2633"]
[TimeControl "180+1"]
[EndTime "11:31:16 PST"]
[Termination "FormerProdigy won by checkmate"]

1. d4 {[%clk 0:03:00.9]} 1... Nf6 {[%clk 0:02:59.5]} 2. c4 {[%clk 0:03:01.1]}
2... e6 {[%clk 0:02:58.6]} 3. Nc3 {[%clk 0:03:01.4]} 3... Bb4 {[%clk 0:02:58.2]}
4. e3 {[%clk 0:03:01.7]} 4... b6 {[%clk 0:02:56.8]} 5. Ne2 {[%clk 0:02:48.7]}
5... Bb7 {[%clk 0:02:52.9]} 6. a3 {[%clk 0:02:46]} 6... Bd6 {[%clk 0:02:52.2]}
7. Ng3 {[%clk 0:02:36.9]} 7... h5 {[%clk 0:02:51.3]} 8. Bd3 {[%clk 0:02:25.5]}
8... Bxg2 {[%clk 0:02:49.7]} 9. Rg1 {[%clk 0:02:25.5]} 9... Bb7 {[%clk
0:02:49.9]} 10. f4 {[%clk 0:02:09.6]} 10... Be7 {[%clk 0:02:42]} 11. Bd2 {[%clk
0:01:56.7]} 11... d6 {[%clk 0:02:39.9]} 12. Qe2 {[%clk 0:01:53]} 12... Nbd7
{[%clk 0:02:39.2]} 13. O-O-O {[%clk 0:01:46.9]} 13... c5 {[%clk 0:02:38.4]} 14.
d5 {[%clk 0:01:46.7]} 14... Nf8 {[%clk 0:02:15.6]} 15. e4 {[%clk 0:01:41.8]}
15... N6d7 {[%clk 0:01:38]} 16. Nxh5 {[%clk 0:01:39.4]} 16... Bf6 {[%clk
0:01:25.9]} 17. Nxg7+ {[%clk 0:01:31.5]} 17... Bxg7 {[%clk 0:01:26.8]} 18. Rxg7
{[%clk 0:01:31.6]} 18... Qf6 {[%clk 0:01:22.6]} 19. Rg5 {[%clk 0:01:04.4]} 19...
a6 {[%clk 0:01:00.7]} 20. e5 {[%clk 0:01:03.1]} 20... Qh6 {[%clk 0:00:52.3]} 21.
Ne4 {[%clk 0:01:00.4]} 21... Ke7 {[%clk 0:00:33.2]} 22. Nxd6 {[%clk 0:00:58.5]}
22... Rb8 {[%clk 0:00:32.1]} 23. f5 {[%clk 0:00:52.7]} 23... Qxh2 {[%clk
0:00:22.8]} 24. f6+ {[%clk 0:00:46.7]} 24... Kd8 {[%clk 0:00:16.7]} 25. Nxf7+
{[%clk 0:00:47.6]} 25... Kc7 {[%clk 0:00:17.2]} 26. Nxh8 {[%clk 0:00:48.5]}
26... Qxh8 {[%clk 0:00:16]} 27. Rg7 {[%clk 0:00:45.3]} 27... Bc8 {[%clk
0:00:11.9]} 28. Be4 {[%clk 0:00:38.3]} 28... Qh4 {[%clk 0:00:07.2]} 29. Bg5
{[%clk 0:00:33.6]} 29... Qh3 {[%clk 0:00:06]} 30. d6+ {[%clk 0:00:29.7]} 30...
Kd8 {[%clk 0:00:06.4]} 31. f7+ {[%clk 0:00:30.6]} 31... Nf6 {[%clk 0:00:06.3]}
32. Bxf6+ {[%clk 0:00:28.8]} 32... Kd7 {[%clk 0:00:07.2]} 33. Rg8 {[%clk
0:00:27.7]} 33... Bb7 {[%clk 0:00:06.1]} 34. Bxb7 {[%clk 0:00:26.3]} 34... Rxb7
{[%clk 0:00:07]} 35. Qe4 {[%clk 0:00:24.3]} 35... b5 {[%clk 0:00:07.9]} 36.
Qxb7# {[%clk 0:00:23.8]} 1-0

[Event "*** Titled Tuesday Blitz"]
[Site "Chess.com"]
[Date "2021.03.09"]
[Round "8"]
[White "PotapovaM"]
[Black "toog"]
[Result "0-1"]
[WhiteElo "2498"]
[BlackElo "2391"]
[TimeControl "180+1"]
[EndTime "11:31:16 PST"]
[Termination "toog won by resignation"]

1. e4 {[%clk 0:02:59.2]} 1... c5 {[%clk 0:02:57.5]} 2. Nf3 {[%clk 0:02:56.8]}
2... d6 {[%clk 0:02:40.8]} 3. d4 {[%clk 0:02:56.9]} 3... cxd4 {[%clk 0:02:41.7]}
4. Nxd4 {[%clk 0:02:57.8]} 4... Nf6 {[%clk 0:02:40.1]} 5. Nc3 {[%clk 0:02:58.4]}
5... a6 {[%clk 0:02:34.6]} 6. Be3 {[%clk 0:02:58.5]} 6... e6 {[%clk 0:02:33.4]}
7. f3 {[%clk 0:02:57.9]} 7... b5 {[%clk 0:02:33.3]} 8. Qd2 {[%clk 0:02:58.1]}
8... Bb7 {[%clk 0:02:33]} 9. g4 {[%clk 0:02:58]} 9... b4 {[%clk 0:02:28.2]} 10.
Na4 {[%clk 0:02:57.8]} 10... d5 {[%clk 0:02:28.4]} 11. e5 {[%clk 0:02:57.6]}
11... Nfd7 {[%clk 0:02:28.3]} 12. f4 {[%clk 0:02:57.6]} 12... Nc6 {[%clk
0:02:26.7]} 13. O-O-O {[%clk 0:02:53.1]} 13... Rc8 {[%clk 0:02:20.4]} 14. Kb1
{[%clk 0:02:52.9]} 14... Nxd4 {[%clk 0:01:51.9]} 15. Bxd4 {[%clk 0:02:52.6]}
15... Bc6 {[%clk 0:01:52.1]} 16. b3 {[%clk 0:02:32.4]} 16... Bxa4 {[%clk
0:01:51.6]} 17. bxa4 {[%clk 0:02:33.3]} 17... Nc5 {[%clk 0:01:50.5]} 18. f5
{[%clk 0:02:28.8]} 18... Be7 {[%clk 0:01:44.7]} 19. fxe6 {[%clk 0:02:21.1]}
19... fxe6 {[%clk 0:01:45.6]} 20. Qf2 {[%clk 0:02:10.7]} 20... Ne4 {[%clk
0:01:42.3]} 21. Qf3 {[%clk 0:02:05.4]} 21... Rf8 {[%clk 0:01:35.8]} 22. Qh3
{[%clk 0:01:57.9]} 22... Nc3+ {[%clk 0:01:15.5]} 23. Bxc3 {[%clk 0:01:56.4]}
23... bxc3 {[%clk 0:01:16.4]} 24. Bxa6 {[%clk 0:01:46.3]} 24... Rb8+ {[%clk
0:01:06.1]} 25. Ka1 {[%clk 0:01:41.9]} 25... Ba3 {[%clk 0:00:49.8]} 26. Bb5+
{[%clk 0:01:26.8]} 26... Rxb5 {[%clk 0:00:48.2]} 27. axb5 {[%clk 0:01:27.7]}
27... Bb2+ {[%clk 0:00:48.8]} 28. Kb1 {[%clk 0:01:28]} 28... Qa5 {[%clk
0:00:48.6]} 29. Rhf1 {[%clk 0:01:04.2]} 29... Rxf1 {[%clk 0:00:23.9]} 30. Rxf1
{[%clk 0:00:38.2]} 30... Qb4 {[%clk 0:00:22.7]} 0-1

[Event "*** Titled Tuesday Blitz"]
[Site "Chess.com"]
[Date "2021.03.09"]
[Round "8"]
[White "BanjoKazooieN64"]
[Black "Snegokhod"]
[Result "1-0"]
[WhiteElo "2409"]
[BlackElo "2540"]
[TimeControl "180+1"]
[EndTime "11:31:17 PST"]
[Termination "BanjoKazooieN64 won by checkmate"]

1. e4 {[%clk 0:03:00.9]} 1... c5 {[%clk 0:02:59.4]} 2. Nc3 {[%clk 0:03:00.1]}
2... Nc6 {[%clk 0:02:59.1]} 3. Nf3 {[%clk 0:02:59.9]} 3... g6 {[%clk 0:02:58.3]}
4. Bb5 {[%clk 0:02:59.4]} 4... Nd4 {[%clk 0:02:57.4]} 5. Ba4 {[%clk 0:02:58.8]}
5... Bg7 {[%clk 0:02:57.2]} 6. O-O {[%clk 0:02:58.9]} 6... e6 {[%clk 0:02:56.9]}
7. Nxd4 {[%clk 0:02:58.3]} 7... cxd4 {[%clk 0:02:56.2]} 8. Nb5 {[%clk
0:02:58.6]} 8... Qb6 {[%clk 0:02:54.8]} 9. c3 {[%clk 0:02:58.6]} 9... Ne7 {[%clk
0:02:49.4]} 10. Nxd4 {[%clk 0:02:45.3]} 10... Bxd4 {[%clk 0:02:46.8]} 11. cxd4
{[%clk 0:02:45.4]} 11... Qxd4 {[%clk 0:02:47.1]} 12. d3 {[%clk 0:02:40]} 12...
O-O {[%clk 0:02:40.5]} 13. Rb1 {[%clk 0:02:35.7]} 13... d6 {[%clk 0:02:32.8]}
14. Be3 {[%clk 0:02:35]} 14... Qg7 {[%clk 0:02:30.7]} 15. Qc2 {[%clk 0:02:22.9]}
15... d5 {[%clk 0:02:12.7]} 16. Bc5 {[%clk 0:02:15.3]} 16... f6 {[%clk
0:02:08.6]} 17. exd5 {[%clk 0:02:08.6]} 17... exd5 {[%clk 0:02:05.6]} 18. Rfe1
{[%clk 0:02:08.2]} 18... Rf7 {[%clk 0:02:05.5]} 19. Be8 {[%clk 0:01:54.7]} 19...
Nc6 {[%clk 0:01:58.9]} 20. Bxf7+ {[%clk 0:01:51.8]} 20... Qxf7 {[%clk
0:01:58.6]} 21. b4 {[%clk 0:01:47.6]} 21... a6 {[%clk 0:01:57.9]} 22. a4 {[%clk
0:01:47.1]} 22... Bf5 {[%clk 0:01:55.7]} 23. Qc3 {[%clk 0:01:42.2]} 23... Ne5
{[%clk 0:01:51.1]} 24. Rbd1 {[%clk 0:01:09.4]} 24... Rc8 {[%clk 0:01:50.3]} 25.
Qb3 {[%clk 0:01:08.8]} 25... h5 {[%clk 0:01:37.5]} 26. d4 {[%clk 0:01:08.6]}
26... Nc4 {[%clk 0:01:36.2]} 27. Re7 {[%clk 0:01:08.5]} 27... Qf8 {[%clk
0:01:33.4]} 28. Rxb7 {[%clk 0:01:03.3]} 28... Qe8 {[%clk 0:01:25.4]} 29. Re7
{[%clk 0:01:02.9]} 29... Qc6 {[%clk 0:01:25.5]} 30. b5 {[%clk 0:00:59]} 30...
axb5 {[%clk 0:01:21.3]} 31. axb5 {[%clk 0:00:59.2]} 31... Qa8 {[%clk 0:01:19.1]}
32. b6 {[%clk 0:00:57.5]} 32... Rb8 {[%clk 0:01:08.9]} 33. b7 {[%clk 0:00:46.4]}
33... Qa6 {[%clk 0:00:59.6]} 34. Rde1 {[%clk 0:00:46.4]} 34... Be4 {[%clk
0:00:42.9]} 35. f3 {[%clk 0:00:41.4]} 35... Nd2 {[%clk 0:00:39.3]} 36. Qb6
{[%clk 0:00:35.1]} 36... Qxb6 {[%clk 0:00:25.4]} 37. Bxb6 {[%clk 0:00:35.1]}
37... Kf8 {[%clk 0:00:19.1]} 38. Rc7 {[%clk 0:00:33.1]} 38... Bf5 {[%clk
0:00:17.2]} 39. Ba7 {[%clk 0:00:31.4]} 39... Rxb7 {[%clk 0:00:15.9]} 40. Rxb7
{[%clk 0:00:31.5]} 40... Nc4 {[%clk 0:00:16.1]} 41. Bc5+ {[%clk 0:00:31]} 41...
Kg8 {[%clk 0:00:15.4]} 42. Re8# {[%clk 0:00:30.9]} 1-0

[Event "*** Titled Tuesday Blitz"]
[Site "Chess.com"]
[Date "2021.03.09"]
[Round "8"]
[White "Anton_Demchenko"]
[Black "Bodnar_Mykola"]
[Result "0-1"]
[WhiteElo "2840"]
[BlackElo "2500"]
[TimeControl "180+1"]
[EndTime "11:31:18 PST"]
[Termination "Bodnar_Mykola won on time"]

1. e4 {[%clk 0:03:00.9]} 1... e5 {[%clk 0:03:00.4]} 2. Nf3 {[%clk 0:03:00.7]}
2... Nc6 {[%clk 0:03:01]} 3. Bc4 {[%clk 0:03:01.3]} 3... Bc5 {[%clk 0:03:01]} 4.
d3 {[%clk 0:03:01.8]} 4... Nf6 {[%clk 0:03:01]} 5. Bg5 {[%clk 0:03:02.4]} 5...
h6 {[%clk 0:03:00.6]} 6. Bh4 {[%clk 0:03:03]} 6... d6 {[%clk 0:03:00.7]} 7. c3
{[%clk 0:03:03]} 7... a5 {[%clk 0:02:58.6]} 8. Nbd2 {[%clk 0:03:02.8]} 8... Ba7
{[%clk 0:02:52.3]} 9. O-O {[%clk 0:03:01.6]} 9... g5 {[%clk 0:02:50.9]} 10. Bg3
{[%clk 0:03:02]} 10... O-O {[%clk 0:02:49.5]} 11. Re1 {[%clk 0:02:58.6]} 11...
Nh7 {[%clk 0:02:48.7]} 12. Nf1 {[%clk 0:02:56.9]} 12... h5 {[%clk 0:02:47.9]}
13. h3 {[%clk 0:02:53.6]} 13... h4 {[%clk 0:02:47.6]} 14. Bh2 {[%clk 0:02:54.1]}
14... g4 {[%clk 0:02:48.5]} 15. hxg4 {[%clk 0:02:54.6]} 15... Bxg4 {[%clk
0:02:48.9]} 16. Ne3 {[%clk 0:02:41.9]} 16... Bxe3 {[%clk 0:02:49.4]} 17. Rxe3
{[%clk 0:02:35.7]} 17... Ng5 {[%clk 0:02:49.6]} 18. Qd2 {[%clk 0:02:14.8]} 18...
Bxf3 {[%clk 0:02:35.3]} 19. gxf3 {[%clk 0:02:15.7]} 19... Qf6 {[%clk 0:02:35]}
20. Kh1 {[%clk 0:02:06.5]} 20... Kh8 {[%clk 0:02:17.9]} 21. Qe2 {[%clk
0:01:38.3]} 21... Ne7 {[%clk 0:01:47]} 22. f4 {[%clk 0:01:23]} 22... exf4 {[%clk
0:01:47.9]} 23. Qh5+ {[%clk 0:01:22.6]} 23... Nh7 {[%clk 0:01:48]} 24. Rf3
{[%clk 0:00:52.1]} 24... Ng6 {[%clk 0:01:48]} 25. Rg1 {[%clk 0:00:52.7]} 25...
Rae8 {[%clk 0:01:45.6]} 26. Bxf7 {[%clk 0:00:42.2]} 26... Qxf7 {[%clk 0:01:15]}
27. Rxg6 {[%clk 0:00:31.3]} 27... Qxa2 {[%clk 0:00:47.5]} 28. Bxf4 {[%clk
0:00:30.9]} 28... Qf7 {[%clk 0:00:41.3]} 29. Be5+ {[%clk 0:00:28.2]} 29... Rxe5
{[%clk 0:00:39.6]} 30. Rxf7 {[%clk 0:00:13.2]} 30... Rxh5 {[%clk 0:00:39.7]} 31.
Rxc7 {[%clk 0:00:14.1]} 31... h3 {[%clk 0:00:29.7]} 32. Rxd6 {[%clk 0:00:12.3]}
32... h2 {[%clk 0:00:27.7]} 33. Rxb7 {[%clk 0:00:11.1]} 33... Rxf2 {[%clk
0:00:27.3]} 34. Rd8+ {[%clk 0:00:11.1]} 34... Nf8 {[%clk 0:00:27.6]} 0-1

[Event "*** Titled Tuesday Blitz"]
[Site "Chess.com"]
[Date "2021.03.09"]
[Round "8"]
[White "GMBenjaminFinegold"]
[Black "HackingKid98"]
[Result "1-0"]
[WhiteElo "2616"]
[BlackElo "2458"]
[TimeControl "180+1"]
[EndTime "11:31:18 PST"]
[Termination "GMBenjaminFinegold won by checkmate"]

1. d4 {[%clk 0:03:00.9]} 1... Nf6 {[%clk 0:02:53.4]} 2. c4 {[%clk 0:03:00.3]}
2... c6 {[%clk 0:02:51.4]} 3. Nc3 {[%clk 0:02:59.1]} 3... d5 {[%clk 0:02:49.9]}
4. Nf3 {[%clk 0:02:58.5]} 4... e6 {[%clk 0:02:49.3]} 5. Bg5 {[%clk 0:02:57.3]}
5... dxc4 {[%clk 0:02:48.3]} 6. e4 {[%clk 0:02:56.9]} 6... b5 {[%clk 0:02:48.4]}
7. e5 {[%clk 0:02:57.5]} 7... h6 {[%clk 0:02:48.7]} 8. Bh4 {[%clk 0:02:56.6]}
8... g5 {[%clk 0:02:49.1]} 9. exf6 {[%clk 0:02:56.1]} 9... gxh4 {[%clk
0:02:47.2]} 10. Ne5 {[%clk 0:02:54.4]} 10... Qxf6 {[%clk 0:02:39.9]} 11. a4
{[%clk 0:02:50.1]} 11... Bb4 {[%clk 0:02:33.1]} 12. Be2 {[%clk 0:02:47.8]} 12...
Bb7 {[%clk 0:02:29.5]} 13. Bf3 {[%clk 0:02:43.5]} 13... a6 {[%clk 0:02:28.1]}
14. O-O {[%clk 0:02:41.1]} 14... O-O {[%clk 0:02:27.1]} 15. Ne4 {[%clk
0:02:36.6]} 15... Qg7 {[%clk 0:02:18]} 16. axb5 {[%clk 0:01:56.8]} 16... axb5
{[%clk 0:02:12.7]} 17. Rxa8 {[%clk 0:01:55.8]} 17... Bxa8 {[%clk 0:02:13.6]} 18.
Qa1 {[%clk 0:01:55.9]} 18... f6 {[%clk 0:01:42.5]} 19. Ng4 {[%clk 0:01:46.2]}
19... f5 {[%clk 0:01:36.9]} 20. Nef6+ {[%clk 0:01:42.3]} 20... Kh8 {[%clk
0:01:25.4]} 21. Qxa8 {[%clk 0:01:32.2]} 21... fxg4 {[%clk 0:01:23.8]} 22. Nxg4
{[%clk 0:01:32.6]} 22... h3 {[%clk 0:01:14.3]} 23. Ra1 {[%clk 0:00:58.3]} 23...
Bd6 {[%clk 0:00:49.3]} 24. Ra7 {[%clk 0:00:48.8]} 24... Rf7 {[%clk 0:00:48.2]}
25. Rxf7 {[%clk 0:00:40.9]} 25... Qxf7 {[%clk 0:00:49.1]} 26. Bxc6 {[%clk
0:00:32.7]} 26... Qf4 {[%clk 0:00:40.3]} 27. gxh3 {[%clk 0:00:32.3]} 27... h5
{[%clk 0:00:09.2]} 28. Ne3 {[%clk 0:00:32.2]} 28... Qxd4 {[%clk 0:00:08.1]} 29.
Be4 {[%clk 0:00:28.2]} 29... Qe5 {[%clk 0:00:06.7]} 30. Qb7 {[%clk 0:00:27.1]}
30... Qxh2+ {[%clk 0:00:05.7]} 31. Kf1 {[%clk 0:00:27.6]} 31... Qxh3+ {[%clk
0:00:06.6]} 32. Ke2 {[%clk 0:00:27.8]} 32... Kg8 {[%clk 0:00:05.2]} 33. Qh7+
{[%clk 0:00:25.7]} 33... Kf8 {[%clk 0:00:05.1]} 34. Bg6 {[%clk 0:00:25.8]} 34...
Qg4+ {[%clk 0:00:03.7]} 35. Nxg4 {[%clk 0:00:25.3]} 35... hxg4 {[%clk 0:00:04]}
36. Qf7# {[%clk 0:00:25]} 1-0

[Event "*** Titled Tuesday Blitz"]
[Site "Chess.com"]
[Date "2021.03.09"]
[Round "8"]
[White "thechesscorner64"]
[Black "Joseacorrea"]
[Result "1-0"]
[WhiteElo "2357"]
[BlackElo "2081"]
[TimeControl "180+1"]
[EndTime "11:31:18 PST"]
[Termination "thechesscorner64 won on time"]

1. e4 {[%clk 0:02:42.4]} 1... c5 {[%clk 0:02:59.5]} 2. Nf3 {[%clk 0:02:41.4]}
2... g6 {[%clk 0:02:58.8]} 3. c3 {[%clk 0:02:38.9]} 3... d5 {[%clk 0:02:56.6]}
4. exd5 {[%clk 0:02:35.6]} 4... Qxd5 {[%clk 0:02:57.5]} 5. d4 {[%clk 0:02:35.5]}
5... Bg7 {[%clk 0:02:54.2]} 6. Bd3 {[%clk 0:02:34.3]} 6... Bg4 {[%clk
0:02:48.6]} 7. Nbd2 {[%clk 0:02:33.4]} 7... cxd4 {[%clk 0:02:38.2]} 8. cxd4
{[%clk 0:02:30]} 8... Bxf3 {[%clk 0:02:11.6]} 9. Nxf3 {[%clk 0:02:29]} 9... Nc6
{[%clk 0:02:11.9]} 10. O-O {[%clk 0:02:26]} 10... Nf6 {[%clk 0:02:04.7]} 11. Be3
{[%clk 0:02:21.3]} 11... O-O {[%clk 0:02:02.3]} 12. Qa4 {[%clk 0:02:13.6]} 12...
a6 {[%clk 0:01:57.4]} 13. Rfd1 {[%clk 0:02:10.3]} 13... Rac8 {[%clk 0:01:53.1]}
14. Bc4 {[%clk 0:02:05.9]} 14... Qh5 {[%clk 0:01:42.8]} 15. Be2 {[%clk
0:01:53.3]} 15... Qd5 {[%clk 0:01:35.5]} 16. h3 {[%clk 0:01:41]} 16... e6 {[%clk
0:01:22.3]} 17. Rac1 {[%clk 0:01:34.4]} 17... Rfd8 {[%clk 0:01:12.2]} 18. Qa3
{[%clk 0:01:28.1]} 18... Qd7 {[%clk 0:00:58.5]} 19. Ne5 {[%clk 0:01:23.8]} 19...
Nxe5 {[%clk 0:00:48.8]} 20. dxe5 {[%clk 0:01:24.7]} 20... Nd5 {[%clk 0:00:48.7]}
21. Bd4 {[%clk 0:01:24.4]} 21... Rxc1 {[%clk 0:00:45.3]} 22. Rxc1 {[%clk
0:01:23.5]} 22... Rc8 {[%clk 0:00:45.8]} 23. Rd1 {[%clk 0:01:20.4]} 23... Bf8
{[%clk 0:00:39.6]} 24. Qg3 {[%clk 0:01:14.9]} 24... Bc5 {[%clk 0:00:33.1]} 25.
Bxc5 {[%clk 0:01:07.5]} 25... Rxc5 {[%clk 0:00:34]} 26. Bf3 {[%clk 0:01:08]}
26... Qb5 {[%clk 0:00:26.5]} 27. Bxd5 {[%clk 0:01:04.4]} 27... Rxd5 {[%clk
0:00:27.4]} 28. Rxd5 {[%clk 0:01:00.9]} 28... Qxd5 {[%clk 0:00:28.3]} 29. f4
{[%clk 0:00:56.3]} 29... Qxa2 {[%clk 0:00:20.4]} 30. Qc3 {[%clk 0:00:53.8]}
30... Qd5 {[%clk 0:00:15.6]} 31. Qc8+ {[%clk 0:00:52.4]} 31... Kg7 {[%clk
0:00:15.6]} 32. Qc3 {[%clk 0:00:49.2]} 32... b5 {[%clk 0:00:13.9]} 33. Kh2
{[%clk 0:00:49.1]} 33... h6 {[%clk 0:00:11.3]} 34. Qg3 {[%clk 0:00:44.6]} 34...
Qe4 {[%clk 0:00:09.1]} 35. Qf2 {[%clk 0:00:34.2]} 35... a5 {[%clk 0:00:04.6]}
36. h4 {[%clk 0:00:34.6]} 36... a4 {[%clk 0:00:03.9]} 37. h5 {[%clk 0:00:35.2]}
37... g5 {[%clk 0:00:03.1]} 38. fxg5 {[%clk 0:00:34.2]} 1-0

[Event "*** Titled Tuesday Blitz"]
[Site "Chess.com"]
[Date "2021.03.09"]
[Round "8"]
[White "Kostukov_Alex"]
[Black "coco_crc"]
[Result "0-1"]
[WhiteElo "2303"]
[BlackElo "2213"]
[TimeControl "180+1"]
[EndTime "11:31:19 PST"]
[Termination "coco_crc won on time"]

1. e4 {[%clk 0:03:00.9]} 1... e5 {[%clk 0:02:59.4]} 2. Nf3 {[%clk 0:03:00.6]}
2... Nc6 {[%clk 0:02:59.5]} 3. d4 {[%clk 0:02:53.7]} 3... exd4 {[%clk
0:03:00.4]} 4. Bc4 {[%clk 0:02:53]} 4... Nf6 {[%clk 0:02:58]} 5. e5 {[%clk
0:02:52.2]} 5... d5 {[%clk 0:02:57.1]} 6. Bb5 {[%clk 0:02:52.3]} 6... Ne4 {[%clk
0:02:56.7]} 7. Nxd4 {[%clk 0:02:49.8]} 7... Bd7 {[%clk 0:02:56.9]} 8. Bxc6
{[%clk 0:02:49.4]} 8... bxc6 {[%clk 0:02:57.8]} 9. O-O {[%clk 0:02:49]} 9... Bc5
{[%clk 0:02:58.3]} 10. f3 {[%clk 0:02:48.3]} 10... Ng5 {[%clk 0:02:57.1]} 11. f4
{[%clk 0:02:48.4]} 11... Ne4 {[%clk 0:02:57.7]} 12. Be3 {[%clk 0:02:48.2]} 12...
Qe7 {[%clk 0:02:57.8]} 13. Nc3 {[%clk 0:02:24.1]} 13... f5 {[%clk 0:02:56.6]}
14. Nxe4 {[%clk 0:02:18.8]} 14... fxe4 {[%clk 0:02:56.1]} 15. c4 {[%clk
0:02:16.9]} 15... O-O {[%clk 0:02:37.6]} 16. cxd5 {[%clk 0:02:08.7]} 16... cxd5
{[%clk 0:02:38.5]} 17. Rc1 {[%clk 0:02:03.7]} 17... Bb6 {[%clk 0:02:36.6]} 18.
Qb3 {[%clk 0:01:29.7]} 18... c6 {[%clk 0:02:17.8]} 19. Nxc6 {[%clk 0:01:23.6]}
19... Bxc6 {[%clk 0:02:15.3]} 20. Rxc6 {[%clk 0:01:22]} 20... Bxe3+ {[%clk
0:02:03.5]} 21. Qxe3 {[%clk 0:01:20.7]} 21... Qb4 {[%clk 0:02:03.4]} 22. f5
{[%clk 0:01:08.9]} 22... Qxb2 {[%clk 0:02:01.2]} 23. Qf4 {[%clk 0:00:41]} 23...
Qd4+ {[%clk 0:01:36.3]} 24. Kh1 {[%clk 0:00:37]} 24... Rae8 {[%clk 0:01:33.9]}
25. e6 {[%clk 0:00:25.3]} 25... Qf6 {[%clk 0:01:19.4]} 26. Rc7 {[%clk
0:00:21.2]} 26... Rxe6 {[%clk 0:01:05.6]} 27. fxe6 {[%clk 0:00:10.3]} 27... Qxf4
{[%clk 0:01:06.5]} 28. Rxf4 {[%clk 0:00:10.1]} 28... Rxf4 {[%clk 0:01:07.4]} 29.
h3 {[%clk 0:00:11]} 29... e3 {[%clk 0:01:05.1]} 30. Rc1 {[%clk 0:00:06.5]} 30...
Re4 {[%clk 0:01:04.7]} 31. Kg1 {[%clk 0:00:06.1]} 31... Rxe6 {[%clk 0:01:03.3]}
32. Kf1 {[%clk 0:00:05.3]} 32... d4 {[%clk 0:01:01.8]} 33. Ke2 {[%clk
0:00:04.9]} 33... Kf7 {[%clk 0:01:01]} 34. Rc7+ {[%clk 0:00:04]} 34... Re7
{[%clk 0:01:00.5]} 35. Rc4 {[%clk 0:00:04.1]} 35... Rd7 {[%clk 0:01:00.5]} 36.
Kd3 {[%clk 0:00:04.7]} 36... Ke6 {[%clk 0:01:00.5]} 37. Rc5 {[%clk 0:00:03.3]}
37... g6 {[%clk 0:00:59.4]} 38. Ra5 {[%clk 0:00:03.1]} 38... Kf6 {[%clk
0:00:58.9]} 39. g4 {[%clk 0:00:03.4]} 39... Kg7 {[%clk 0:00:58.2]} 40. h4 {[%clk
0:00:03.9]} 40... Kf6 {[%clk 0:00:59.1]} 41. h5 {[%clk 0:00:03.9]} 41... gxh5
{[%clk 0:00:58]} 42. gxh5 {[%clk 0:00:04.8]} 42... Re7 {[%clk 0:00:55.4]} 43. a4
{[%clk 0:00:05.4]} 43... e2 {[%clk 0:00:55.2]} 44. Ra6+ {[%clk 0:00:06.3]} 44...
Kf5 {[%clk 0:00:54.8]} 0-1

[Event "*** Titled Tuesday Blitz"]
[Site "Chess.com"]
[Date "2021.03.09"]
[Round "8"]
[White "SkippingLaptop"]
[Black "gisela_roque"]
[Result "1-0"]
[WhiteElo "2098"]
[BlackElo "1746"]
[TimeControl "180+1"]
[EndTime "11:31:19 PST"]
[Termination "SkippingLaptop won by resignation"]

1. d4 {[%clk 0:03:00.2]} 1... e6 {[%clk 0:02:59.7]} 2. c4 {[%clk 0:02:58.4]}
2... Nf6 {[%clk 0:02:58.5]} 3. Nc3 {[%clk 0:02:57.4]} 3... Bb4 {[%clk
0:02:58.3]} 4. Qc2 {[%clk 0:02:48.8]} 4... c5 {[%clk 0:02:57.7]} 5. dxc5 {[%clk
0:02:35]} 5... O-O {[%clk 0:02:51.3]} 6. Nf3 {[%clk 0:02:34.2]} 6... Na6 {[%clk
0:02:47.2]} 7. Bf4 {[%clk 0:02:33.8]} 7... Bxc5 {[%clk 0:02:27.6]} 8. e3 {[%clk
0:02:33.2]} 8... Bb4 {[%clk 0:02:15.4]} 9. a3 {[%clk 0:02:30.3]} 9... Qa5 {[%clk
0:02:13.2]} 10. Nd2 {[%clk 0:02:27.9]} 10... Bxc3 {[%clk 0:02:10]} 11. bxc3
{[%clk 0:02:26.7]} 11... b6 {[%clk 0:02:01.1]} 12. Bd3 {[%clk 0:02:23.4]} 12...
Bb7 {[%clk 0:02:00.3]} 13. O-O {[%clk 0:02:22.6]} 13... Rac8 {[%clk 0:01:58.5]}
14. e4 {[%clk 0:02:00.1]} 14... Nc5 {[%clk 0:01:51.1]} 15. e5 {[%clk 0:01:57.4]}
15... Nxd3 {[%clk 0:01:49.7]} 16. Qxd3 {[%clk 0:01:53.6]} 16... Nh5 {[%clk
0:01:40]} 17. Qf3 {[%clk 0:01:34.3]} 17... Nxf4 {[%clk 0:01:35.8]} 18. Qxf4
{[%clk 0:01:33.1]} 18... Qxc3 {[%clk 0:01:30.2]} 19. Rad1 {[%clk 0:01:26]} 19...
Qxa3 {[%clk 0:01:07.5]} 20. h4 {[%clk 0:01:25.1]} 20... Qe7 {[%clk 0:00:59.5]}
21. h5 {[%clk 0:01:23.6]} 21... Rc5 {[%clk 0:00:53]} 22. Rfe1 {[%clk 0:01:21.7]}
22... Rfc8 {[%clk 0:00:51.2]} 23. h6 {[%clk 0:01:20.6]} 23... g6 {[%clk
0:00:49]} 24. Re3 {[%clk 0:01:10.6]} 24... Ba6 {[%clk 0:00:37.6]} 25. Ne4 {[%clk
0:01:06.3]} 25... Rxc4 {[%clk 0:00:30.6]} 26. Nf6+ {[%clk 0:01:05.5]} 26... Kh8
{[%clk 0:00:27.9]} 27. Qg3 {[%clk 0:01:01.1]} 27... Rc1 {[%clk 0:00:22.6]} 28.
Rxc1 {[%clk 0:00:54.9]} 28... Rxc1+ {[%clk 0:00:23.5]} 29. Kh2 {[%clk
0:00:55.6]} 29... d5 {[%clk 0:00:18.5]} 30. Ra3 {[%clk 0:00:33.5]} 30... Be2
{[%clk 0:00:11.7]} 31. Qe3 {[%clk 0:00:25.9]} 31... Bh5 {[%clk 0:00:09.5]} 32.
Qxc1 {[%clk 0:00:21.9]} 1-0